fUSD/lending_fUSD_20240424
["ID","MTS","AMOUNT","RATE_DAILY","PERIOD"]
[323407831,1713972650108,-500.0,0.00011232,2]
[323407832,1713972650119,-500.0,0.00011232,2]
[323407833,1713972650130,-581.66,0.00011232,2]
[323407834,1713972650140,-500.0,0.00011232,2]
[323407835,1713972650150,-500.0,0.00011232,2]
[323407836,1713972650160,-500.0,0.00011232,2]
[323407837,1713972650171,-500.0,0.00011232,2]
[323407838,1713972650181,-500.0,0.00011232,2]
[323407839,1713972650192,-500.0,0.00011232,2]
[323407840,1713972650201,-500.0,0.00011232,2]
[323407841,1713972650210,-500.0,0.00011232,2]
[323407842,1713972650220,-500.0,0.00011232,2]
[323407843,1713972650229,-500.0,0.00011232,2]
[323407844,1713972650239,-500.0,0.00011232,2]
[323407845,1713972650249,-500.0,0.00011232,2]
[323407846,1713972650259,-500.0,0.00011232,2]
[323407847,1713972650268,-500.0,0.00011232,2]
[323407848,1713972650279,-500.0,0.00011232,2]
[323407849,1713972650296,-500.0,0.00011232,2]
[323407850,1713972650307,-500.0,0.00011232,2]
[323407851,1713972650316,-500.0,0.00011232,2]
[323407852,1713972650326,-500.0,0.00011232,2]
[323407853,1713972650336,-500.0,0.00011232,2]
[323407854,1713972650346,-592.28,0.00011232,2]
[323407855,1713972650356,-500.0,0.00011232,2]
[323407856,1713972650365,-500.0,0.00011232,2]
[323407857,1713972650375,-500.0,0.00011232,2]
[323407858,1713972650384,-500.0,0.00011232,2]
[323407859,1713972650395,-500.0,0.00011232,2]
[323407860,1713972650405,-500.0,0.00011232,2]
[323407861,1713972650414,-500.0,0.00011232,2]
[323407862,1713972650424,-500.0,0.00011232,2]
[323407863,1713972650434,-500.0,0.00011232,2]
[323407864,1713972650443,-500.0,0.00011232,2]
[323407865,1713972650453,-500.0,0.00011232,2]
[323407866,1713972650462,-832.84,0.00011232,2]
[323407867,1713972650471,-500.0,0.00011232,2]
[323407868,1713972650481,-500.0,0.00011232,2]
[323407869,1713972650491,-500.0,0.00011232,2]
[323407870,1713972650501,-500.0,0.00011232,2]
[323407871,1713972650511,-500.0,0.00011232,2]
[323407872,1713972650521,-500.0,0.00011232,2]
[323407873,1713972650533,-500.0,0.00011232,2]
[323407874,1713972650543,-500.0,0.00011232,2]
[323407875,1713972650553,-500.0,0.00011232,2]
[323407876,1713972650563,-500.0,0.00011232,2]
[323407877,1713972650572,-500.0,0.00011232,2]
[323407878,1713972650582,-500.0,0.00011232,2]
[323407879,1713972650592,-500.0,0.00011232,2]
[323407880,1713972650601,-500.0,0.00011232,2]
[323407881,1713972650610,-500.0,0.00011232,2]
[323407882,1713972650619,-500.0,0.00011232,2]
[323407883,1713972650628,-500.0,0.00011232,2]
[323407884,1713972650638,-500.0,0.00011232,2]
[323407885,1713972650647,-500.0,0.00011232,2]
[323407886,1713972650657,-500.0,0.00011232,2]
[323407887,1713972650667,-500.0,0.00011232,2]
[323407888,1713972650676,-500.0,0.00011232,2]
[323407889,1713972650686,-555.24,0.00011232,2]
[323407890,1713972650703,-500.0,0.00011232,2]
[323407891,1713972650713,-500.0,0.00011232,2]
[323407892,1713972650723,-923.07,0.00011232,2]
[323407893,1713972650735,-500.0,0.00011232,2]
[323407894,1713972650745,-500.0,0.00011232,2]
[323407895,1713972650755,-500.0,0.00011232,2]
[323407896,1713972650764,-159.77520798,0.00011232,2]
[323407897,1713972650774,-500.0,0.00011232,2]
[323407898,1713972650784,-290.98,0.00011232,2]
[323407899,1713972650794,-500.0,0.00011232,2]
[323407900,1713972650805,-500.0,0.00011232,2]
[323407901,1713972650814,-500.0,0.00011232,2]
[323407902,1713972650824,-500.0,0.00011232,2]
[323407903,1713972650834,-537.66,0.00011232,2]
[323407904,1713972650845,-262.16,0.00011232,2]
[323407905,1713972650860,-500.0,0.00011232,2]
[323407906,1713972650869,-921.33,0.00011232,2]
[323407907,1713972650879,-500.0,0.00011232,2]
[323407908,1713972650888,-500.0,0.00011232,2]
[323407909,1713972650898,-517.06,0.00011232,2]
[323407910,1713972650907,-500.0,0.00011232,2]
[323407911,1713972650917,-837.17,0.00011232,2]
[323407912,1713972650926,-1230.56,0.00011232,2]
[323407913,1713972650936,-500.0,0.00011232,2]
[323407914,1713972650946,-500.0,0.00011232,2]
[323407915,1713972650956,-564.22,0.00011232,2]
[323407916,1713972650965,-500.0,0.00011232,2]
[323407917,1713972650974,-500.0,0.00011232,2]
[323407918,1713972650984,-719.93,0.00011232,2]
[323407919,1713972650994,-500.0,0.00011232,2]
[323407920,1713972651004,-500.0,0.00011232,2]
[323407921,1713972651014,-500.0,0.00011232,2]
[323407922,1713972651023,-500.0,0.00011232,2]
[323407923,1713972651034,-500.0,0.00011232,2]
[323407924,1713972651043,-442.01682709,0.00011232,2]
[323407925,1713972651053,-500.0,0.00011232,2]
[323407926,1713972651062,-500.0,0.00011232,2]
[323407927,1713972651072,-810.29,0.00011232,2]
[323407928,1713972651082,-500.0,0.00011232,2]
[323407929,1713972651092,-500.0,0.00011232,2]
[323407930,1713972651103,-657.61,0.00011232,2]
[323407931,1713972651113,-1000.93,0.00011232,2]
[323407932,1713972651123,-500.0,0.00011232,2]
[323407933,1713972651133,-383.3,0.00011232,2]
[323407934,1713972651143,-500.0,0.00011232,2]
[323407935,1713972651153,-520.21,0.00011232,2]
[323407936,1713972651163,-500.0,0.00011232,2]
[323407937,1713972651173,-2401.63,0.00011232,2]
[323407938,1713972651182,-500.0,0.00011232,2]
[323407939,1713972651192,-500.0,0.00011232,2]
[323407940,1713972651201,-500.0,0.00011232,2]
[323407941,1713972651210,-500.0,0.00011232,2]
[323407942,1713972651220,-500.0,0.00011232,2]
[323407943,1713972651229,-592.75,0.00011232,2]
[323407944,1713972651239,-500.0,0.00011232,2]
[323407945,1713972651248,-500.0,0.00011232,2]
[323407946,1713972651257,-500.0,0.00011232,2]
[323407947,1713972651267,-500.0,0.00011232,2]
[323407948,1713972651276,-500.0,0.00011232,2]
[323407949,1713972651288,-621.79,0.00011232,2]
[323407950,1713972651298,-533.42,0.00011232,2]
[323407951,1713972651308,-500.0,0.00011232,2]
[323407952,1713972651318,-605.97,0.00011232,2]
[323407953,1713972651327,-500.0,0.00011232,2]
[323407954,1713972651336,-500.0,0.00011232,2]
[323407955,1713972651345,-500.0,0.00011232,2]
[323407956,1713972651354,-500.0,0.00011232,2]
[323407957,1713972651363,-500.0,0.00011232,2]
[323407958,1713972651373,-500.0,0.00011232,2]
[323407959,1713972651382,-506.51,0.00011232,2]
[323407960,1713972651391,-500.0,0.00011232,2]
[323407961,1713972651400,-500.0,0.00011232,2]
[323407962,1713972651409,-500.0,0.00011232,2]
[323407963,1713972651419,-500.0,0.00011232,2]
[323407964,1713972651428,-500.0,0.00011232,2]
[323407965,1713972651448,-500.0,0.00011232,2]
[323407966,1713972651470,-500.0,0.00011232,2]
[323407967,1713972651491,-500.0,0.00011232,2]
[323407968,1713972651510,-500.0,0.00011232,2]
[323407969,1713972651528,-500.0,0.00011232,2]
[323407970,1713972651547,-203.72128278,0.00011232,2]
[323407971,1713972651564,-500.0,0.00011232,2]
[323407972,1713972651579,-500.0,0.00011232,2]
[323407973,1713972651594,-426.96233686,0.00011232,2]
[323407974,1713972651611,-690.2,0.00011232,2]
[323407975,1713972651626,-500.0,0.00011232,2]
[323407976,1713972651646,-500.0,0.00011232,2]
[323407977,1713972651658,-500.0,0.00011232,2]
[323407978,1713972651668,-563.01,0.00011232,2]
[323407979,1713972651678,-500.0,0.00011232,2]
[323407980,1713972651688,-500.0,0.00011232,2]
[323407981,1713972651698,-500.0,0.00011232,2]
[323407982,1713972651710,-500.0,0.00011232,2]
[323407983,1713972651720,-500.0,0.00011232,2]
[323407984,1713972651730,-500.0,0.00011232,2]
[323407985,1713972651741,-500.0,0.00011232,2]
[323407986,1713972651751,-500.0,0.00011232,2]
[323407987,1713972651761,-500.0,0.00011232,2]
[323407988,1713972651771,-500.0,0.00011232,2]
[323407989,1713972651781,-735.85,0.00011232,2]
[323407990,1713972651797,-500.0,0.00011232,2]
[323407991,1713972651807,-1263.24,0.00011232,2]
[323407992,1713972651817,-1422.67,0.00011232,2]
[323407993,1713972651827,-500.0,0.00011232,2]
[323407994,1713972651837,-502.36,0.00011232,2]
[323407995,1713972651847,-500.0,0.00011232,2]
[323407996,1713972651857,-500.0,0.00011232,2]
[323407997,1713972651866,-500.0,0.00011232,2]
[323407998,1713972651876,-622.25,0.00011232,2]
[323407999,1713972651886,-909.54,0.00011232,2]
[323408000,1713972651896,-500.0,0.00011232,2]
[323408001,1713972651906,-500.0,0.00011232,2]
[323408002,1713972651916,-500.0,0.00011232,2]
[323408003,1713972651926,-329.81,0.00011232,2]
[323408004,1713972651935,-697.45,0.00011232,2]
[323408005,1713972651945,-500.0,0.00011232,2]
[323408006,1713972651955,-614.21,0.00011232,2]
[323408007,1713972651965,-500.0,0.00011232,2]
[323408008,1713972651975,-500.0,0.00011232,2]
[323408009,1713972651984,-500.0,0.00011232,2]
[323408010,1713972651993,-140.02423324,0.00011232,2]
[323408011,1713972652446,-682.86576676,0.00011232,2]
[323408012,1713972652455,-500.0,0.00011232,2]
[323408013,1713972652464,-852.16,0.00011232,2]
[323408014,1713972652473,-500.0,0.00011232,2]
[323408015,1713972652483,-821.2,0.00011232,2]
[323408016,1713972652492,-500.0,0.00011232,2]
[323408017,1713972652501,-500.0,0.00011232,2]
[323408018,1713972652510,-500.0,0.00011232,2]
[323408019,1713972652519,-500.0,0.00011232,2]
[323408020,1713972652529,-726.75,0.00011232,2]
[323408021,1713972652540,-439.75857475,0.00011232,2]
[323408022,1713972652574,-745.98142525,0.00011232,2]
[323408023,1713972652585,-500.0,0.00011232,2]
[323408024,1713972652594,-500.0,0.00011232,2]
[323408025,1713972652604,-500.0,0.00011232,2]
[323408026,1713972652612,-550.13,0.00011232,2]
[323408027,1713972652621,-500.0,0.00011232,2]
[323408028,1713972652631,-1898.55,0.00011232,2]
[323408029,1713972652640,-500.0,0.00011232,2]
[323408030,1713972652649,-500.0,0.00011232,2]
[323408031,1713972652659,-500.0,0.00011232,2]
[323408032,1713972652668,-500.0,0.00011232,2]
[323408033,1713972652678,-500.0,0.00011232,2]
[323408034,1713972652688,-500.0,0.00011232,2]
[323408035,1713972652702,-500.0,0.00011232,2]
[323408036,1713972652713,-500.0,0.00011232,2]
[323408037,1713972652722,-500.0,0.00011232,2]
[323408038,1713972652731,-500.0,0.00011232,2]
[323408039,1713972652744,-598.0,0.00011232,2]
[323408040,1713972652753,-2419.21,0.00011232,2]
[323408041,1713972652763,-500.0,0.00011232,2]
[323408042,1713972652772,-500.0,0.00011232,2]
[323408043,1713972652781,-500.0,0.00011232,2]
[323408044,1713972652792,-500.0,0.00011232,2]
[323408045,1713972652801,-500.0,0.00011232,2]
[323408046,1713972652810,-500.0,0.00011232,2]
[323408047,1713972652819,-500.0,0.00011232,2]
[323408048,1713972652828,-500.0,0.00011232,2]
[323408049,1713972652837,-500.0,0.00011232,2]
[323408050,1713972652847,-500.0,0.00011232,2]
[323408051,1713972652856,-500.0,0.00011232,2]
[323408052,1713972652865,-500.0,0.00011232,2]
[323408053,1713972652875,-654.28,0.00011232,2]
[323408054,1713972652884,-1067.54,0.00011232,2]
[323408055,1713972652894,-500.0,0.00011232,2]
[323408056,1713972652903,-1076.71,0.00011232,2]
[323408057,1713972652912,-3086.19,0.00011232,2]
[323408058,1713972652923,-500.0,0.00011232,2]
[323408059,1713972652931,-500.0,0.00011232,2]
[323408060,1713972652941,-159.62,0.00011232,2]
[323408061,1713972652950,-791.36,0.00011232,2]
[323408062,1713972652959,-633.26,0.00011232,2]
[323408063,1713972652968,-155.72,0.00011232,2]
[323408064,1713972652978,-696.78,0.00011232,2]
[323408065,1713972652988,-500.0,0.00011232,2]
[323408066,1713972652997,-272.49,0.00011232,2]
[323408067,1713972653006,-503.34741485,0.00011232,2]
[323408068,1713972653015,-500.0,0.00011232,2]
[323408069,1713972653024,-784.71,0.00011232,2]
[323408070,1713972653035,-500.0,0.00011232,2]
[323408071,1713972653044,-500.0,0.00011232,2]
[323408072,1713972653053,-500.0,0.00011232,2]
[323408073,1713972653063,-195.73,0.00011232,2]
[323408074,1713972653072,-500.0,0.00011232,2]
[323408075,1713972653081,-3249.5,0.00011232,2]
[323408076,1713972653090,-500.0,0.00011232,2]
[323408077,1713972653099,-500.0,0.00011232,2]
[323408078,1713972653109,-1125.11,0.00011232,2]
[323408079,1713972653118,-533.27,0.00011232,2]
[323408080,1713972653127,-454.95,0.00011232,2]
[323408081,1713972653137,-500.0,0.00011232,2]
[323408082,1713972653146,-1424.26,0.00011232,2]
[323408083,1713972653156,-564.3,0.00011232,2]
[323408084,1713972653165,-500.0,0.00011232,2]
[323408085,1713972653174,-568.9,0.00011232,2]
[323408086,1713972653184,-500.0,0.00011232,2]
[323408087,1713972653193,-500.0,0.00011232,2]
[323408088,1713972653202,-500.0,0.00011232,2]
[323408089,1713972653212,-1394.24,0.00011232,2]
[323408090,1713972653221,-500.0,0.00011232,2]
[323408091,1713972653230,-500.0,0.00011232,2]
[323408092,1713972653239,-500.0,0.00011232,2]
[323408093,1713972653248,-422.33,0.00011232,2]
[323408094,1713972653257,-500.0,0.00011232,2]
[323408095,1713972653266,-500.0,0.00011232,2]
[323408096,1713972653276,-566.48,0.00011232,2]
[323408097,1713972653285,-500.0,0.00011232,2]
[323408098,1713972653294,-500.0,0.00011232,2]
[323408099,1713972653302,-500.0,0.00011232,2]
[323408100,1713972653313,-157.54,0.00011232,2]
[323408101,1713972653322,-238.9,0.00011232,2]
[323408102,1713972653331,-500.0,0.00011232,2]
[323408103,1713972653341,-253.14,0.00011232,2]
[323408104,1713972653350,-1372.53,0.00011232,2]
[323408105,1713972653359,-500.0,0.00011232,2]
[323408106,1713972653369,-237.55,0.00011232,2]
[323408107,1713972653378,-214.82,0.00011232,2]
[323408108,1713972653387,-500.0,0.00011232,2]
[323408109,1713972653396,-500.0,0.00011232,2]
[323408110,1713972653405,-500.0,0.00011232,2]
[323408111,1713972653416,-500.0,0.00011232,2]
[323408112,1713972653426,-500.0,0.00011232,2]
[323408113,1713972653435,-500.0,0.00011232,2]
[323408114,1713972653444,-500.0,0.00011232,2]
[323408115,1713972653542,-500.0,0.00011232,2]
[323408116,1713972653598,-1080.02,0.00011232,2]
[323408117,1713972653608,-500.0,0.00011232,2]
[323408118,1713972653617,-1230.02,0.00011232,2]
[323408119,1713972653627,-1228.13,0.00011232,2]
[323408120,1713972653636,-3443.03,0.00011232,2]
[323408121,1713972653645,-500.0,0.00011232,2]
[323408122,1713972653654,-500.0,0.00011232,2]
[323408123,1713972653664,-500.0,0.00011232,2]
[323408124,1713972653673,-500.0,0.00011232,2]
[323408125,1713972653682,-500.0,0.00011232,2]
[323408126,1713972653693,-1268.11,0.00011232,2]
[323408127,1713972653703,-500.0,0.00011232,2]
[323408128,1713972653713,-500.0,0.00011232,2]
[323408129,1713972653722,-665.52,0.00011232,2]
[323408130,1713972653731,-1096.66,0.00011232,2]
[323408131,1713972653740,-500.0,0.00011232,2]
[323408132,1713972653750,-500.0,0.00011232,2]
[323408133,1713972653759,-500.0,0.00011232,2]
[323408134,1713972653769,-500.0,0.00011232,2]
[323408135,1713972653780,-500.0,0.00011232,2]
[323408136,1713972653794,-282.61,0.00011232,2]
[323408137,1713972653803,-500.0,0.00011232,2]
[323408138,1713972653812,-624.74,0.00011232,2]
[323408139,1713972653821,-500.0,0.00011232,2]
[323408140,1713972653831,-845.37,0.00011232,2]
[323408141,1713972653840,-2620.88,0.00011232,2]
[323408142,1713972653849,-500.0,0.00011232,2]
[323408143,1713972653858,-772.01,0.00011232,2]
[323408144,1713972653868,-500.0,0.00011232,2]
[323408145,1713972653878,-500.0,0.00011232,2]
[323408146,1713972653887,-500.0,0.00011232,2]
[323408147,1713972653896,-978.64,0.00011232,2]
[323408148,1713972653905,-3073.52,0.00011232,2]
[323408149,1713972653914,-500.0,0.00011232,2]
[323408150,1713972653924,-500.0,0.00011232,2]
[323408151,1713972653933,-500.0,0.00011232,2]
[323408152,1713972653943,-601.71820015,0.00011232,2]
[323408153,1713972653952,-500.0,0.00011232,2]
[323408154,1713972653962,-500.0,0.00011232,2]
[323408155,1713972653972,-500.0,0.00011232,2]
[323408156,1713972653981,-1159.61,0.00011232,2]
[323408157,1713972653992,-500.0,0.00011232,2]
[323408158,1713972654001,-500.0,0.00011232,2]
[323408159,1713972654011,-500.0,0.00011232,2]
[323408160,1713972654020,-861.87,0.00011232,2]
[323408161,1713972654029,-500.0,0.00011232,2]
[323408162,1713972654043,-500.0,0.00011232,2]
[323408163,1713972654053,-500.0,0.00011232,2]
[323408164,1713972654062,-500.0,0.00011232,2]
[323408165,1713972654071,-500.0,0.00011232,2]
[323408166,1713972654080,-2800.84,0.00011232,2]
[323408167,1713972654090,-500.0,0.00011232,2]
[323408168,1713972654099,-500.0,0.00011232,2]
[323408169,1713972654109,-500.0,0.00011232,2]
[323408170,1713972654118,-1320.4,0.00011232,2]
[323408171,1713972654128,-500.0,0.00011232,2]
[323408172,1713972654137,-500.0,0.00011232,2]
[323408173,1713972654146,-500.0,0.00011232,2]
[323408174,1713972654156,-500.0,0.00011232,2]
[323408175,1713972654165,-710.12,0.00011232,2]
[323408176,1713972654175,-500.0,0.00011232,2]
[323408177,1713972654184,-833.98,0.00011232,2]
[323408178,1713972654193,-1307.58,0.00011232,2]
[323408179,1713972654202,-1246.57,0.00011232,2]
[323408180,1713972654212,-500.0,0.00011232,2]
[323408181,1713972654221,-500.0,0.00011232,2]
[323408182,1713972654232,-500.0,0.00011232,2]
[323408183,1713972654241,-500.0,0.00011232,2]
[323408184,1713972654250,-500.0,0.00011232,2]
[323408185,1713972654260,-3170.21,0.00011232,2]
[323408186,1713972654269,-500.0,0.00011232,2]
[323408187,1713972654280,-500.0,0.00011232,2]
[323408188,1713972654292,-500.0,0.00011232,2]
[323408189,1713972654302,-500.0,0.00011232,2]
[323408190,1713972654311,-563.85,0.00011232,2]
[323408191,1713972654320,-500.0,0.00011232,2]
[323408192,1713972654330,-500.0,0.00011232,2]
[323408193,1713972654339,-550.23,0.00011232,2]
[323408194,1713972654349,-500.0,0.00011232,2]
[323408195,1713972654359,-500.0,0.00011232,2]
[323408196,1713972654368,-500.0,0.00011232,2]
[323408197,1713972654378,-845.5,0.00011232,2]
[323408198,1713972654388,-500.0,0.00011232,2]
[323408199,1713972654397,-548.11,0.00011232,2]
[323408200,1713972654407,-1358.18,0.00011232,2]
[323408201,1713972654417,-479.51443127,0.00011232,2]
[323408202,1713972654426,-500.0,0.00011232,2]
[323408203,1713972654436,-500.0,0.00011232,2]
[323408204,1713972654446,-500.0,0.00011232,2]
[323408205,1713972654456,-620.64,0.00011232,2]
[323408206,1713972654465,-1248.75,0.00011232,2]
[323408207,1713972654475,-500.0,0.00011232,2]
[323408208,1713972654485,-500.0,0.00011232,2]
[323408209,1713972654495,-500.0,0.00011232,2]
[323408210,1713972654504,-500.0,0.00011232,2]
[323408211,1713972654513,-1085.54,0.00011232,2]
[323408212,1713972654523,-500.0,0.00011232,2]
[323408213,1713972654533,-3695.85,0.00011232,2]
[323408214,1713972654544,-500.0,0.00011232,2]
[323408215,1713972654553,-500.0,0.00011232,2]
[323408216,1713972654562,-4345.73,0.00011232,2]
[323408217,1713972654571,-500.0,0.00011232,2]
[323408218,1713972654580,-500.0,0.00011232,2]
[323408219,1713972654590,-500.0,0.00011232,2]
[323408220,1713972654599,-1838.97,0.00011232,2]
[323408221,1713972654608,-19689.72,0.00011232,2]
[323408222,1713972654618,-931.39,0.00011232,2]
[323408223,1713972654627,-13159.88,0.00011232,2]
[323408224,1713972654637,-934.35,0.00011232,2]
[323408225,1713972654646,-500.0,0.00011232,2]
[323408226,1713972654655,-500.0,0.00011232,2]
[323408227,1713972654665,-500.0,0.00011232,2]
[323408228,1713972654674,-500.0,0.00011232,2]
[323408229,1713972654684,-2828.5,0.00011232,2]
[323408230,1713972654694,-4719.15,0.00011232,2]
[323408231,1713972654705,-2388.43,0.00011232,2]
[323408232,1713972654715,-1617.75,0.00011232,2]
[323408233,1713972654725,-500.0,0.00011232,2]
[323408234,1713972654735,-1854.7,0.00011232,2]
[323408235,1713972654744,-500.0,0.00011232,2]
[323408236,1713972654754,-1115.25,0.00011232,2]
[323408237,1713972654764,-11881.79,0.00011232,2]
[323408238,1713972654774,-500.0,0.00011232,2]
[323408239,1713972654788,-500.0,0.00011232,2]
[323408240,1713972654798,-500.0,0.00011232,2]
[323408241,1713972654807,-500.0,0.00011232,2]
[323408242,1713972654817,-2868.9,0.00011232,2]
[323408243,1713972654827,-5730.95,0.00011232,2]
[323408244,1713972654836,-500.0,0.00011232,2]
[323408245,1713972654845,-1256.99,0.00011232,2]
[323408246,1713972654855,-4920.04,0.00011232,2]
[323408247,1713972654864,-500.0,0.00011232,2]
[323408248,1713972654874,-8052.36,0.00011232,2]
[323408249,1713972654883,-555.41,0.00011232,2]
[323408250,1713972654893,-500.0,0.00011232,2]
[323408251,1713972654903,-597.11,0.00011232,2]
[323408252,1713972654912,-168.05587742,0.00011232,2]
[323408253,1713972654921,-723.01,0.00011232,2]
[323408254,1713972654931,-500.0,0.00011232,2]
[323408255,1713972654940,-504.28361255,0.00011232,2]
[323408256,1713972654949,-3304.8,0.00011232,2]
[323408257,1713972654959,-1058.73,0.00011232,2]
[323408258,1713972654968,-500.0,0.00011232,2]
[323408259,1713972654977,-500.0,0.00011232,2]
[323408260,1713972654987,-500.0,0.00011232,2]
[323408261,1713972654997,-500.0,0.00011232,2]
[323408262,1713972655006,-500.0,0.00011232,2]
[323408263,1713972655015,-790.94,0.00011232,2]
[323408264,1713972655025,-4539.95,0.00011232,2]
[323408265,1713972655038,-500.0,0.00011232,2]
[323408266,1713972655047,-1301.34,0.00011232,2]
[323408267,1713972655057,-500.0,0.00011232,2]
[323408268,1713972655067,-500.0,0.00011232,2]
[323408269,1713972655076,-687.37,0.00011232,2]
[323408270,1713972655086,-500.0,0.00011232,2]
[323408271,1713972655095,-16038.23,0.00011232,2]
[323408272,1713972655105,-855.99,0.00011232,2]
[323408273,1713972655114,-500.0,0.00011232,2]
[323408274,1713972655124,-500.0,0.00011232,2]
[323408275,1713972655133,-500.0,0.00011232,2]
[323408276,1713972655142,-629.44,0.00011232,2]
[323408277,1713972655151,-500.0,0.00011232,2]
[323408278,1713972655160,-500.0,0.00011232,2]
[323408279,1713972655169,-500.0,0.00011232,2]
[323408280,1713972655179,-500.0,0.00011232,2]
[323408281,1713972655188,-3620.06,0.00011232,2]
[323408282,1713972655197,-344.72,0.00011232,2]
[323408283,1713972655206,-1866.93,0.00011232,2]
[323408284,1713972655216,-500.0,0.00011232,2]
[323408285,1713972655225,-17065.59,0.00011232,2]
[323408286,1713972655236,-2433.3,0.00011232,2]
[323408287,1713972655246,-851.32,0.00011232,2]
[323408288,1713972655255,-975.71,0.00011232,2]
[323408289,1713972655264,-2542.97,0.00011232,2]
[323408290,1713972655274,-500.0,0.00011232,2]
[323408291,1713972655283,-500.0,0.00011232,2]
[323408292,1713972655296,-7110.65,0.00011232,2]
[323408293,1713972655305,-500.0,0.00011232,2]
[323408294,1713972655314,-6033.3,0.00011232,2]
[323408295,1713972655324,-3222.18,0.00011232,2]
[323408296,1713972655333,-2367.96,0.00011232,2]
[323408297,1713972655343,-500.0,0.00011232,2]
[323408298,1713972655352,-2895.44,0.00011232,2]
[323408299,1713972655362,-500.0,0.00011232,2]
[323408300,1713972655371,-500.0,0.00011232,2]
[323408301,1713972655381,-500.0,0.00011232,2]
[323408302,1713972655390,-500.0,0.00011232,2]
[323408303,1713972655400,-599.74,0.00011232,2]
[323408304,1713972655410,-560.73678462,0.00011232,2]
[323408305,1713972655419,-14734.03,0.00011232,2]
[323408306,1713972655429,-8385.86,0.00011232,2]
[323408307,1713972655438,-500.0,0.00011232,2]
[323408308,1713972655448,-1851.6,0.00011232,2]
[323408309,1713972655458,-4654.63,0.00011232,2]
[323408310,1713972655467,-500.0,0.00011232,2]
[323408311,1713972655477,-500.0,0.00011232,2]
[323408312,1713972655486,-2612.87,0.00011232,2]
[323408313,1713972655495,-500.0,0.00011232,2]
[323408314,1713972655505,-1643.7,0.00011232,2]
[323408315,1713972655514,-500.0,0.00011232,2]
[323408316,1713972655523,-500.0,0.00011232,2]
[323408317,1713972655533,-1060.62,0.00011232,2]
[323408318,1713972655546,-500.0,0.00011232,2]
[323408319,1713972655555,-2728.08,0.00011232,2]
[323408320,1713972655565,-8695.65,0.00011232,2]
[323408321,1713972655575,-902.79,0.00011232,2]
[323408322,1713972655584,-500.0,0.00011232,2]
[323408323,1713972655594,-1318.18,0.00011232,2]
[323408324,1713972655604,-500.0,0.00011232,2]
[323408325,1713972655614,-12150.74,0.00011232,2]
[323408326,1713972655623,-500.0,0.00011232,2]
[323408327,1713972655634,-3049.85,0.00011232,2]
[323408328,1713972655643,-2672.62,0.00011232,2]
[323408329,1713972655653,-500.0,0.00011232,2]
[323408330,1713972655662,-1664.31,0.00011232,2]